[Event "*** Titled Tuesday Blitz"]
[Site "Chess.com"]
[Date "2020.05.19"]
[Round "3"]
[White "Nellichka"]
[Black "marabu44"]
[Result "0-1"]
[WhiteElo "1993"]
[BlackElo "2290"]
[TimeControl "180+1"]
[EndTime "12:25:44 PDT"]
[Termination "marabu44 won by resignation"]

1. d4 {[%clk 0:02:57.9]} 1... d5 {[%clk 0:02:57.9]} 2. c4 {[%clk 0:02:57.3]}
2... e6 {[%clk 0:02:57.1]} 3. Nc3 {[%clk 0:02:56.6]} 3... c5 {[%clk 0:02:52.6]}
4. cxd5 {[%clk 0:02:55.2]} 4... exd5 {[%clk 0:02:50.6]} 5. Nf3 {[%clk
0:02:53.3]} 5... Nf6 {[%clk 0:02:47.8]} 6. g3 {[%clk 0:02:52.7]} 6... Nc6 {[%clk
0:02:47.1]} 7. Bg2 {[%clk 0:02:52.1]} 7... Be6 {[%clk 0:02:41]} 8. O-O {[%clk
0:02:49.4]} 8... Be7 {[%clk 0:02:40.6]} 9. Bg5 {[%clk 0:02:45.1]} 9... O-O
{[%clk 0:02:37.7]} 10. Rc1 {[%clk 0:02:36.5]} 10... Rc8 {[%clk 0:02:30.4]} 11.
Qa4 {[%clk 0:02:29.4]} 11... c4 {[%clk 0:02:22.2]} 12. Rfd1 {[%clk 0:02:23.1]}
12... a6 {[%clk 0:02:21.4]} 13. Bxf6 {[%clk 0:02:11.2]} 13... Bxf6 {[%clk
0:02:20.1]} 14. e4 {[%clk 0:02:10.6]} 14... b5 {[%clk 0:02:05.2]} 15. Qxa6
{[%clk 0:02:06.1]} 15... Nb4 {[%clk 0:02:01.3]} 16. Qxb5 {[%clk 0:02:01.4]}
16... Rb8 {[%clk 0:01:59.6]} 17. Qa4 {[%clk 0:01:56.8]} 17... Nd3 {[%clk
0:01:57.7]} 18. Rxd3 {[%clk 0:01:44.6]} 18... cxd3 {[%clk 0:01:57.4]} 19. e5
{[%clk 0:01:31.3]} 19... Be7 {[%clk 0:01:43.3]} 20. Qd1 {[%clk 0:01:22.2]} 20...
Rxb2 {[%clk 0:01:39.2]} 21. Ne1 {[%clk 0:01:21.1]} 21... d2 {[%clk 0:01:36.2]}
0-1

[Event "*** Titled Tuesday Blitz"]
[Site "Chess.com"]
[Date "2020.05.19"]
[Round "3"]
[White "wonderfultime"]
[Black "DenLaz"]
[Result "1-0"]
[WhiteElo "3009"]
[BlackElo "2663"]
[TimeControl "180+1"]
[EndTime "12:25:51 PDT"]
[Termination "wonderfultime won by resignation"]

1. d4 {[%clk 0:02:51.6]} 1... d5 {[%clk 0:02:59.5]} 2. c4 {[%clk 0:02:49.9]}
2... c6 {[%clk 0:02:59]} 3. Nc3 {[%clk 0:02:48.4]} 3... Nf6 {[%clk 0:02:58.2]}
4. e3 {[%clk 0:02:47.6]} 4... Bf5 {[%clk 0:02:58.2]} 5. cxd5 {[%clk 0:02:46.5]}
5... cxd5 {[%clk 0:02:59.1]} 6. Qb3 {[%clk 0:02:46.7]} 6... Bc8 {[%clk
0:02:59.3]} 7. Nf3 {[%clk 0:02:45.8]} 7... e6 {[%clk 0:02:58.7]} 8. Bd3 {[%clk
0:02:43.5]} 8... Nc6 {[%clk 0:02:56.9]} 9. O-O {[%clk 0:02:36]} 9... Be7 {[%clk
0:02:56.2]} 10. Bd2 {[%clk 0:02:35.8]} 10... O-O {[%clk 0:02:53.9]} 11. Rac1
{[%clk 0:02:34.7]} 11... Na5 {[%clk 0:02:35]} 12. Qc2 {[%clk 0:02:28.3]} 12...
Bd7 {[%clk 0:02:29.8]} 13. Ne5 {[%clk 0:02:24.5]} 13... Rc8 {[%clk 0:02:27.3]}
14. Qb1 {[%clk 0:02:23]} 14... Be8 {[%clk 0:02:23.3]} 15. Nxd5 {[%clk
0:01:55.9]} 15... Rxc1 {[%clk 0:02:01.2]} 16. Nxe7+ {[%clk 0:01:53.2]} 16...
Qxe7 {[%clk 0:02:02.1]} 17. Rxc1 {[%clk 0:01:53.7]} 17... Nc6 {[%clk 0:02:02.7]}
18. a3 {[%clk 0:01:47.9]} 18... h6 {[%clk 0:01:59.7]} 19. Nxc6 {[%clk
0:01:44.7]} 19... Bxc6 {[%clk 0:02:00.6]} 20. Bb4 {[%clk 0:01:45.1]} 20... Qd7
{[%clk 0:02:00.3]} 21. Bxf8 {[%clk 0:01:45.3]} 21... Kxf8 {[%clk 0:02:01.2]} 22.
Qc2 {[%clk 0:01:45.2]} 22... Kg8 {[%clk 0:02:00.6]} 23. Bf1 {[%clk 0:01:41.7]}
23... Ne4 {[%clk 0:01:59.3]} 24. h3 {[%clk 0:01:33.2]} 24... Ng5 {[%clk
0:01:57.2]} 25. Qc5 {[%clk 0:01:30.8]} 25... a6 {[%clk 0:01:56.1]} 26. Qe5
{[%clk 0:01:26.4]} 26... Ne4 {[%clk 0:01:54.3]} 27. Bd3 {[%clk 0:01:24.3]} 27...
Nf6 {[%clk 0:01:52.2]} 28. Qb8+ {[%clk 0:01:23.1]} 28... Ne8 {[%clk 0:01:52.7]}
29. b4 {[%clk 0:01:22]} 29... f5 {[%clk 0:01:51.3]} 30. Qe5 {[%clk 0:01:20.6]}
30... Nf6 {[%clk 0:01:50.7]} 31. Bc4 {[%clk 0:01:20.7]} 31... Nd5 {[%clk
0:01:50.6]} 32. Bxd5 {[%clk 0:01:20.4]} 32... Bxd5 {[%clk 0:01:48.7]} 33. Rc7
{[%clk 0:01:20.1]} 1-0

[Event "*** Titled Tuesday Blitz"]
[Site "Chess.com"]
[Date "2020.05.19"]
[Round "3"]
[White "Karacsonyi_Gellert"]
[Black "Azoulas1"]
[Result "1-0"]
[WhiteElo "2464"]
[BlackElo "1961"]
[TimeControl "180+1"]
[EndTime "12:25:53 PDT"]
[Termination "Karacsonyi_Gellert won by checkmate"]

1. e4 {[%clk 0:03:00.9]} 1... c5 {[%clk 0:02:58.7]} 2. Nf3 {[%clk 0:03:00.1]}
2... e6 {[%clk 0:02:57.5]} 3. d4 {[%clk 0:03:00.5]} 3... cxd4 {[%clk 0:02:56.4]}
4. Nxd4 {[%clk 0:03:01.4]} 4... Nf6 {[%clk 0:02:55.2]} 5. Nc3 {[%clk 0:03:01.8]}
5... d6 {[%clk 0:02:53.6]} 6. Be3 {[%clk 0:02:56.9]} 6... Be7 {[%clk 0:02:52]}
7. f4 {[%clk 0:02:56.9]} 7... O-O {[%clk 0:02:50.5]} 8. Qf3 {[%clk 0:02:57.4]}
8... a6 {[%clk 0:02:48.1]} 9. g4 {[%clk 0:02:55.6]} 9... Nc6 {[%clk 0:02:35.3]}
10. g5 {[%clk 0:02:51.9]} 10... Nd7 {[%clk 0:02:28.8]} 11. O-O-O {[%clk
0:02:51.9]} 11... Qc7 {[%clk 0:02:24.4]} 12. h4 {[%clk 0:02:51]} 12... Nxd4
{[%clk 0:02:22.2]} 13. Bxd4 {[%clk 0:02:49.2]} 13... e5 {[%clk 0:02:22]} 14. Be3
{[%clk 0:02:48.3]} 14... b5 {[%clk 0:02:19]} 15. Nd5 {[%clk 0:02:44.2]} 15...
Qd8 {[%clk 0:02:16.3]} 16. f5 {[%clk 0:02:44.2]} 16... f6 {[%clk 0:01:56.7]} 17.
g6 {[%clk 0:02:44]} 17... h6 {[%clk 0:01:51.5]} 18. Qh5 {[%clk 0:02:43.9]} 18...
Re8 {[%clk 0:01:42.9]} 19. Rg1 {[%clk 0:01:44.1]} 19... Bf8 {[%clk 0:01:34.9]}
20. Be2 {[%clk 0:01:37.6]} 20... Bb7 {[%clk 0:01:29.4]} 21. Bxh6 {[%clk
0:01:37.5]} 21... gxh6 {[%clk 0:01:27.4]} 22. g7 {[%clk 0:01:38.4]} 22... Bxg7
{[%clk 0:01:25.4]} 23. Rxg7+ {[%clk 0:01:34.8]} 23... Kxg7 {[%clk 0:01:23.6]}
24. Rg1+ {[%clk 0:01:35]} 24... Kf8 {[%clk 0:01:09.8]} 25. Qxh6+ {[%clk
0:01:34.3]} 25... Kf7 {[%clk 0:01:08.5]} 26. Qg7# {[%clk 0:01:35.2]} 1-0

[Event "*** Titled Tuesday Blitz"]
[Site "Chess.com"]
[Date "2020.05.19"]
[Round "3"]
[White "Kopytkin"]
[Black "827883"]
[Result "1-0"]
[WhiteElo "2349"]
[BlackElo "2181"]
[TimeControl "180+1"]
[EndTime "12:25:56 PDT"]
[Termination "Kopytkin won by resignation"]

1. e4 {[%clk 0:03:00.9]} 1... e5 {[%clk 0:02:59.3]} 2. Nf3 {[%clk 0:03:00.2]}
2... Nc6 {[%clk 0:02:58.8]} 3. Bc4 {[%clk 0:03:00.1]} 3... Nf6 {[%clk
0:02:58.7]} 4. d3 {[%clk 0:02:59.8]} 4... Bc5 {[%clk 0:02:56.4]} 5. Nc3 {[%clk
0:02:59.9]} 5... O-O {[%clk 0:02:56.2]} 6. Bg5 {[%clk 0:02:59.4]} 6... Be7
{[%clk 0:02:55.4]} 7. O-O {[%clk 0:02:58.1]} 7... h6 {[%clk 0:02:54]} 8. Bh4
{[%clk 0:02:57.4]} 8... a5 {[%clk 0:02:47.7]} 9. Re1 {[%clk 0:02:54.3]} 9... Re8
{[%clk 0:02:41.2]} 10. d4 {[%clk 0:02:51.5]} 10... d6 {[%clk 0:02:37]} 11. h3
{[%clk 0:02:39]} 11... Nh5 {[%clk 0:02:21.5]} 12. Bxe7 {[%clk 0:02:36.8]} 12...
Qxe7 {[%clk 0:02:21.7]} 13. Nd5 {[%clk 0:02:35.1]} 13... Qd8 {[%clk 0:02:16]}
14. dxe5 {[%clk 0:02:28.6]} 14... dxe5 {[%clk 0:02:07.6]} 15. Qd2 {[%clk
0:02:12.9]} 15... Nf6 {[%clk 0:02:04]} 16. Rad1 {[%clk 0:02:10.3]} 16... Be6
{[%clk 0:01:53.9]} 17. Bb5 {[%clk 0:02:04.3]} 17... Bd7 {[%clk 0:01:31.7]} 18.
Nxf6+ {[%clk 0:02:01]} 18... Qxf6 {[%clk 0:01:27.6]} 19. Qxd7 {[%clk 0:02:01]}
19... Re7 {[%clk 0:01:17.8]} 20. Qf5 {[%clk 0:01:55.7]} 20... Qxf5 {[%clk
0:01:15.4]} 21. exf5 {[%clk 0:01:54.2]} 21... Nb4 {[%clk 0:01:15.4]} 22. Rxe5
{[%clk 0:01:44.9]} 22... Rxe5 {[%clk 0:01:12.9]} 23. Nxe5 {[%clk 0:01:45.8]}
23... c6 {[%clk 0:01:12.2]} 24. Bc4 {[%clk 0:01:45.8]} 24... Nxc2 {[%clk
0:01:10.4]} 25. Rd7 {[%clk 0:01:38.2]} 1-0

[Event "*** Titled Tuesday Blitz"]
[Site "Chess.com"]
[Date "2020.05.19"]
[Round "3"]
[White "ajian"]
[Black "cukin84"]
[Result "1-0"]
[WhiteElo "2331"]
[BlackElo "2122"]
[TimeControl "180+1"]
[EndTime "12:26:03 PDT"]
[Termination "ajian won by resignation"]

1. d4 {[%clk 0:03:00.9]} 1... f5 {[%clk 0:02:59.3]} 2. g3 {[%clk 0:03:00.4]}
2... Nf6 {[%clk 0:02:58.2]} 3. Bg2 {[%clk 0:03:00.9]} 3... g6 {[%clk 0:02:57.3]}
4. Nf3 {[%clk 0:03:01.5]} 4... Bg7 {[%clk 0:02:57.6]} 5. O-O {[%clk 0:03:01.9]}
5... O-O {[%clk 0:02:57.9]} 6. c4 {[%clk 0:03:02.5]} 6... d6 {[%clk 0:02:58.2]}
7. Nc3 {[%clk 0:03:03]} 7... Qe8 {[%clk 0:02:57.1]} 8. d5 {[%clk 0:03:03.3]}
8... a5 {[%clk 0:02:56.4]} 9. Nd4 {[%clk 0:02:59.6]} 9... Na6 {[%clk 0:02:54.3]}
10. a3 {[%clk 0:02:59.6]} 10... h6 {[%clk 0:02:51.2]} 11. Rb1 {[%clk 0:02:57.6]}
11... Qf7 {[%clk 0:02:50.7]} 12. b4 {[%clk 0:02:54.2]} 12... axb4 {[%clk
0:02:50.1]} 13. axb4 {[%clk 0:02:55.1]} 13... Nd7 {[%clk 0:02:38.3]} 14. Ncb5
{[%clk 0:02:45]} 14... Ne5 {[%clk 0:02:34.6]} 15. Qc2 {[%clk 0:02:37.2]} 15...
Bd7 {[%clk 0:02:33]} 16. Ne6 {[%clk 0:02:29.4]} 16... Bxb5 {[%clk 0:02:21.9]}
17. cxb5 {[%clk 0:02:19.9]} 17... Nxb4 {[%clk 0:02:08.5]} 18. Rxb4 {[%clk
0:02:17.5]} 18... Rfc8 {[%clk 0:02:07.6]} 19. Nxg7 {[%clk 0:02:02.2]} 19... Qxg7
{[%clk 0:02:06.4]} 20. Bb2 {[%clk 0:02:02.4]} 20... Qf7 {[%clk 0:02:00.4]} 21.
Ra4 {[%clk 0:01:59.6]} 21... Ng4 {[%clk 0:01:51]} 22. Rxa8 {[%clk 0:01:53.1]}
22... Rxa8 {[%clk 0:01:50]} 23. Qxc7 {[%clk 0:01:53.6]} 23... f4 {[%clk
0:01:44.7]} 24. Qxb7 {[%clk 0:01:52.3]} 24... Rf8 {[%clk 0:01:38.5]} 25. Bh3
{[%clk 0:01:33.5]} 25... h5 {[%clk 0:01:29.7]} 26. f3 {[%clk 0:01:31]} 26...
fxg3 {[%clk 0:01:29.2]} 27. hxg3 {[%clk 0:01:24.3]} 1-0

[Event "*** Titled Tuesday Blitz"]
[Site "Chess.com"]
[Date "2020.05.19"]
[Round "3"]
[White "EvgenyRomanov"]
[Black "northridgehawk"]
[Result "1-0"]
[WhiteElo "2684"]
[BlackElo "2258"]
[TimeControl "180+1"]
[EndTime "12:26:05 PDT"]
[Termination "EvgenyRomanov won by resignation"]

1. e4 {[%clk 0:03:00.9]} 1... e5 {[%clk 0:02:51.6]} 2. Nf3 {[%clk 0:03:00.1]}
2... Nc6 {[%clk 0:02:52.1]} 3. Bb5 {[%clk 0:02:59.8]} 3... a6 {[%clk 0:02:52.2]}
4. Ba4 {[%clk 0:02:59.9]} 4... Nf6 {[%clk 0:02:52.3]} 5. O-O {[%clk 0:02:59.7]}
5... b5 {[%clk 0:02:52.6]} 6. Bb3 {[%clk 0:02:58.5]} 6... Bc5 {[%clk 0:02:53]}
7. d3 {[%clk 0:02:57.9]} 7... d6 {[%clk 0:02:53.5]} 8. a4 {[%clk 0:02:57.3]}
8... Rb8 {[%clk 0:02:53]} 9. axb5 {[%clk 0:02:56.3]} 9... axb5 {[%clk
0:02:53.9]} 10. h3 {[%clk 0:02:54.5]} 10... Bb6 {[%clk 0:02:52.2]} 11. Nc3
{[%clk 0:02:50.5]} 11... O-O {[%clk 0:02:50.3]} 12. Nxb5 {[%clk 0:02:41.9]}
12... Re8 {[%clk 0:02:21.5]} 13. Nc3 {[%clk 0:02:39.4]} 13... Nh5 {[%clk
0:02:21.1]} 14. Ng5 {[%clk 0:02:31.1]} 14... Nf4 {[%clk 0:01:49.6]} 15. Bxf4
{[%clk 0:02:26.5]} 15... exf4 {[%clk 0:01:49]} 16. Qh5 {[%clk 0:02:19.9]} 16...
h6 {[%clk 0:01:11.8]} 17. Qxf7+ {[%clk 0:01:43.5]} 17... Kh8 {[%clk 0:01:06.5]}
18. Qg6 {[%clk 0:01:37.6]} 18... Bf5 {[%clk 0:00:48.3]} 19. Nf7+ {[%clk
0:01:33.8]} 1-0

[Event "*** Titled Tuesday Blitz"]
[Site "Chess.com"]
[Date "2020.05.19"]
[Round "3"]
[White "Mikhail_Biryukov"]
[Black "GasconJR"]
[Result "1-0"]
[WhiteElo "2650"]
[BlackElo "2411"]
[TimeControl "180+1"]
[EndTime "12:26:08 PDT"]
[Termination "Mikhail_Biryukov won by resignation"]

1. e4 {[%clk 0:03:00.9]} 1... c5 {[%clk 0:02:40.1]} 2. Nf3 {[%clk 0:02:59]} 2...
Nc6 {[%clk 0:02:39.1]} 3. d4 {[%clk 0:02:56.3]} 3... cxd4 {[%clk 0:02:38.3]} 4.
Nxd4 {[%clk 0:02:57.2]} 4... Nf6 {[%clk 0:02:38.8]} 5. Nc3 {[%clk 0:02:57.4]}
5... e5 {[%clk 0:02:39.3]} 6. Ndb5 {[%clk 0:02:57.1]} 6... d6 {[%clk 0:02:39.8]}
7. Bg5 {[%clk 0:02:56.3]} 7... a6 {[%clk 0:02:39.9]} 8. Na3 {[%clk 0:02:56.2]}
8... b5 {[%clk 0:02:40.4]} 9. Nd5 {[%clk 0:02:56.8]} 9... Be7 {[%clk 0:02:40.2]}
10. Bxf6 {[%clk 0:02:57.4]} 10... Bxf6 {[%clk 0:02:41.1]} 11. c4 {[%clk
0:02:57.9]} 11... b4 {[%clk 0:02:39.1]} 12. Nc2 {[%clk 0:02:58.1]} 12... O-O
{[%clk 0:02:38.5]} 13. g3 {[%clk 0:02:56]} 13... a5 {[%clk 0:02:38.2]} 14. h4
{[%clk 0:02:55.2]} 14... Be6 {[%clk 0:02:33.3]} 15. Qd2 {[%clk 0:02:53.3]} 15...
Be7 {[%clk 0:02:33]} 16. Nce3 {[%clk 0:02:52.5]} 16... Nd4 {[%clk 0:02:31.6]}
17. O-O-O {[%clk 0:02:52.2]} 17... Qd7 {[%clk 0:02:14.2]} 18. Kb1 {[%clk
0:02:48.1]} 18... Bd8 {[%clk 0:02:07.3]} 19. f4 {[%clk 0:02:46]} 19... f5 {[%clk
0:01:51.4]} 20. exf5 {[%clk 0:02:33.6]} 20... Nxf5 {[%clk 0:01:40.7]} 21. fxe5
{[%clk 0:02:25.4]} 21... dxe5 {[%clk 0:01:37.4]} 22. Bh3 {[%clk 0:02:16.9]}
22... Nd4 {[%clk 0:01:14.3]} 23. Bxe6+ {[%clk 0:02:01.8]} 23... Qxe6 {[%clk
0:01:15.2]} 24. Qd3 {[%clk 0:02:02.1]} 24... Ra7 {[%clk 0:01:03.3]} 25. Qe4
{[%clk 0:02:01.5]} 25... Raf7 {[%clk 0:01:01.6]} 26. Rxd4 {[%clk 0:02:00.4]}
26... Qg6 {[%clk 0:00:38.9]} 27. Qxg6 {[%clk 0:01:59.3]} 27... e4 {[%clk
0:00:39.8]} 1-0

[Event "*** Titled Tuesday Blitz"]
[Site "Chess.com"]
[Date "2020.05.19"]
[Round "3"]
[White "fridaywins"]
[Black "Savva09022009"]
[Result "0-1"]
[WhiteElo "2246"]
[BlackElo "2422"]
[TimeControl "180+1"]
[EndTime "12:26:08 PDT"]
[Termination "Savva09022009 won by resignation"]

1. e4 {[%clk 0:03:00.9]} 1... c5 {[%clk 0:02:59.1]} 2. Nf3 {[%clk 0:03:00.2]}
2... Nc6 {[%clk 0:02:59.8]} 3. Bb5 {[%clk 0:02:56.7]} 3... Nf6 {[%clk
0:02:58.7]} 4. e5 {[%clk 0:02:54.9]} 4... Ng4 {[%clk 0:02:58.3]} 5. Bxc6 {[%clk
0:02:45.6]} 5... dxc6 {[%clk 0:02:56.6]} 6. b3 {[%clk 0:02:39.6]} 6... g6 {[%clk
0:02:54.8]} 7. Bb2 {[%clk 0:02:38.8]} 7... Bg7 {[%clk 0:02:55.1]} 8. d3 {[%clk
0:02:39.1]} 8... O-O {[%clk 0:02:55]} 9. Nbd2 {[%clk 0:02:39.1]} 9... Nh6 {[%clk
0:02:49.8]} 10. O-O {[%clk 0:02:37.8]} 10... Nf5 {[%clk 0:02:49.5]} 11. Ne4
{[%clk 0:02:33.5]} 11... b6 {[%clk 0:02:45.7]} 12. Ng3 {[%clk 0:02:33.2]} 12...
Nd4 {[%clk 0:02:43.6]} 13. Nxd4 {[%clk 0:02:24.9]} 13... cxd4 {[%clk 0:02:44.5]}
14. f4 {[%clk 0:02:24]} 14... c5 {[%clk 0:02:34.1]} 15. Qe2 {[%clk 0:02:17.8]}
15... Bb7 {[%clk 0:02:31.9]} 16. e6 {[%clk 0:01:58]} 16... f5 {[%clk 0:02:28.3]}
17. Rfe1 {[%clk 0:01:40.8]} 17... Qd5 {[%clk 0:02:22.5]} 18. Nf1 {[%clk
0:01:39.9]} 18... Rf6 {[%clk 0:02:18]} 19. Nd2 {[%clk 0:01:35.6]} 19... Rc8
{[%clk 0:02:13.2]} 20. Qf3 {[%clk 0:01:05.3]} 20... Qxf3 {[%clk 0:02:02.9]} 21.
Nxf3 {[%clk 0:01:04.4]} 21... Bxf3 {[%clk 0:02:01.6]} 22. gxf3 {[%clk
0:01:04.3]} 22... Rc6 {[%clk 0:02:02.4]} 23. Kf2 {[%clk 0:00:56.5]} 23... Rfxe6
{[%clk 0:01:59.9]} 24. Rxe6 {[%clk 0:00:56.5]} 24... Rxe6 {[%clk 0:02:00.8]} 25.
Re1 {[%clk 0:00:56.3]} 25... Rxe1 {[%clk 0:01:53.1]} 26. Kxe1 {[%clk 0:00:56.2]}
26... Bh6 {[%clk 0:01:52.2]} 27. Bc1 {[%clk 0:00:53.8]} 27... e5 {[%clk
0:01:52.5]} 28. Kd1 {[%clk 0:00:46.7]} 28... Bxf4 {[%clk 0:01:49.6]} 0-1

[Event "*** Titled Tuesday Blitz"]
[Site "Chess.com"]
[Date "2020.05.19"]
[Round "3"]
[White "themind1hunter"]
[Black "FLamps8"]
[Result "1-0"]
[WhiteElo "2370"]
[BlackElo "2538"]
[TimeControl "180+1"]
[EndTime "12:26:10 PDT"]
[Termination "themind1hunter won by resignation"]

1. e4 {[%clk 0:02:58.1]} 1... c6 {[%clk 0:02:59.7]} 2. d4 {[%clk 0:02:57.4]}
2... d5 {[%clk 0:03:00.6]} 3. Nc3 {[%clk 0:02:57.9]} 3... dxe4 {[%clk
0:02:53.7]} 4. Nxe4 {[%clk 0:02:58.8]} 4... Bf5 {[%clk 0:02:54.1]} 5. Ng3 {[%clk
0:02:58]} 5... Bg6 {[%clk 0:02:54.6]} 6. h4 {[%clk 0:02:54.2]} 6... h6 {[%clk
0:02:54.3]} 7. Nf3 {[%clk 0:02:54.7]} 7... e6 {[%clk 0:02:53.6]} 8. Ne5 {[%clk
0:02:53.9]} 8... Bh7 {[%clk 0:02:53]} 9. Bd3 {[%clk 0:02:54.4]} 9... Qxd4 {[%clk
0:02:30.1]} 10. Nxf7 {[%clk 0:02:50]} 10... Bxd3 {[%clk 0:02:27.9]} 11. Nxh8
{[%clk 0:02:46.6]} 11... Qe5+ {[%clk 0:02:25.3]} 12. Be3 {[%clk 0:02:44.4]}
12... Bh7 {[%clk 0:01:56]} 13. O-O {[%clk 0:02:38]} 13... Nd7 {[%clk 0:01:45.7]}
14. Bd4 {[%clk 0:02:33.2]} 14... Qd5 {[%clk 0:01:43.4]} 15. Qh5+ {[%clk
0:02:28.9]} 15... Qxh5 {[%clk 0:01:42.5]} 16. Nxh5 {[%clk 0:02:29.8]} 16... Ngf6
{[%clk 0:01:25.8]} 17. Nxf6+ {[%clk 0:02:28.2]} 17... gxf6 {[%clk 0:01:22.9]}
18. h5 {[%clk 0:02:28]} 18... e5 {[%clk 0:01:15.1]} 19. Be3 {[%clk 0:02:26.6]}
19... Bxc2 {[%clk 0:01:12]} 20. f4 {[%clk 0:02:25.2]} 20... O-O-O {[%clk
0:01:03.7]} 21. Ng6 {[%clk 0:02:16.7]} 21... Bg7 {[%clk 0:01:00.6]} 22. fxe5
{[%clk 0:02:13.9]} 22... Nxe5 {[%clk 0:00:47.3]} 23. Nxe5 {[%clk 0:02:08.2]}
23... fxe5 {[%clk 0:00:48.2]} 24. Rf7 {[%clk 0:02:08.1]} 24... Rd7 {[%clk
0:00:48.1]} 25. Raf1 {[%clk 0:02:05.7]} 25... e4 {[%clk 0:00:29.9]} 26. Rxd7
{[%clk 0:01:59.3]} 1-0

[Event "*** Titled Tuesday Blitz"]
[Site "Chess.com"]
[Date "2020.05.19"]
[Round "3"]
[White "Mimsychess"]
[Black "Stormeman100100"]
[Result "0-1"]
[WhiteElo "2253"]
[BlackElo "2545"]
[TimeControl "180+1"]
[EndTime "12:26:11 PDT"]
[Termination "Stormeman100100 won by resignation"]

1. d4 {[%clk 0:03:00.9]} 1... Nf6 {[%clk 0:02:51.1]} 2. c4 {[%clk 0:03:00]} 2...
e6 {[%clk 0:02:47.3]} 3. Nc3 {[%clk 0:02:59.6]} 3... Bb4 {[%clk 0:02:44.3]} 4.
e3 {[%clk 0:02:58.6]} 4... O-O {[%clk 0:02:43.6]} 5. Bd2 {[%clk 0:02:58.8]} 5...
d5 {[%clk 0:02:43.1]} 6. Nf3 {[%clk 0:02:58.1]} 6... b6 {[%clk 0:02:42.1]} 7.
cxd5 {[%clk 0:02:49.8]} 7... exd5 {[%clk 0:02:41.5]} 8. Ne5 {[%clk 0:02:47.2]}
8... Bb7 {[%clk 0:02:29.7]} 9. Bd3 {[%clk 0:02:43.6]} 9... Bd6 {[%clk
0:02:28.9]} 10. O-O {[%clk 0:02:41.2]} 10... c5 {[%clk 0:02:29.2]} 11. Rc1
{[%clk 0:02:16.7]} 11... Nc6 {[%clk 0:02:27.3]} 12. Nxc6 {[%clk 0:02:12.2]}
12... Bxc6 {[%clk 0:02:26.1]} 13. Qf3 {[%clk 0:02:01.8]} 13... Ne4 {[%clk
0:02:08.1]} 14. Bxe4 {[%clk 0:01:47.8]} 14... dxe4 {[%clk 0:02:06.9]} 15. Nxe4
{[%clk 0:01:48.7]} 15... Qh4 {[%clk 0:01:58.8]} 16. g3 {[%clk 0:01:10.9]} 16...
Qxe4 {[%clk 0:01:56.4]} 17. Qxe4 {[%clk 0:01:09.9]} 17... Bxe4 {[%clk
0:01:57.3]} 18. f3 {[%clk 0:01:09.1]} 18... Bg6 {[%clk 0:01:57]} 19. dxc5 {[%clk
0:01:03.9]} 19... Bxc5 {[%clk 0:01:57.9]} 20. b4 {[%clk 0:01:02.8]} 20... Be7
{[%clk 0:01:57.5]} 21. Rc7 {[%clk 0:00:59.1]} 21... Bf6 {[%clk 0:01:57.1]} 22.
e4 {[%clk 0:00:56.3]} 22... Be5 {[%clk 0:01:48.6]} 23. Re7 {[%clk 0:00:54.3]}
23... Bd4+ {[%clk 0:01:46.3]} 24. Kg2 {[%clk 0:00:53.6]} 24... Rac8 {[%clk
0:01:44.4]} 25. f4 {[%clk 0:00:45.1]} 25... Bf6 {[%clk 0:01:41.5]} 26. Rd7
{[%clk 0:00:43.8]} 26... Bxe4+ {[%clk 0:01:41.4]} 0-1

[Event "*** Titled Tuesday Blitz"]
[Site "Chess.com"]
[Date "2020.05.19"]
[Round "3"]
[White "ENEASZ"]
[Black "1f3_2g41-0"]
[Result "1-0"]
[WhiteElo "2534"]
[BlackElo "2306"]
[TimeControl "180+1"]
[EndTime "12:26:25 PDT"]
[Termination "ENEASZ won by checkmate"]

1. e4 {[%clk 0:03:00.9]} 1... c5 {[%clk 0:02:59.4]} 2. c3 {[%clk 0:03:00.7]}
2... d5 {[%clk 0:02:56.9]} 3. exd5 {[%clk 0:03:01.6]} 3... Qxd5 {[%clk
0:02:57.3]} 4. d4 {[%clk 0:03:02.2]} 4... Nf6 {[%clk 0:02:57.1]} 5. Nf3 {[%clk
0:03:02.2]} 5... e6 {[%clk 0:02:52.3]} 6. Na3 {[%clk 0:03:00.4]} 6... Nc6 {[%clk
0:02:52.1]} 7. Nb5 {[%clk 0:02:57.8]} 7... Qd8 {[%clk 0:02:52]} 8. Bf4 {[%clk
0:02:57.4]} 8... Nd5 {[%clk 0:02:51.1]} 9. Bg3 {[%clk 0:02:57.5]} 9... a6 {[%clk
0:02:50]} 10. Na3 {[%clk 0:02:55.9]} 10... cxd4 {[%clk 0:02:49.5]} 11. Nxd4
{[%clk 0:02:55.8]} 11... Nxd4 {[%clk 0:02:44.2]} 12. Qxd4 {[%clk 0:02:54.3]}
12... Bxa3 {[%clk 0:02:32.5]} 13. Qa4+ {[%clk 0:02:53.8]} 13... b5 {[%clk
0:02:21.7]} 14. Qxa3 {[%clk 0:02:54.7]} 14... Bb7 {[%clk 0:02:07.5]} 15. Be2
{[%clk 0:02:54.3]} 15... Qe7 {[%clk 0:02:01.3]} 16. Bd6 {[%clk 0:02:53.9]} 16...
Qg5 {[%clk 0:02:01.7]} 17. Bg3 {[%clk 0:02:50.9]} 17... Qe7 {[%clk 0:02:00.9]}
18. Bd6 {[%clk 0:02:47.2]} 18... Qg5 {[%clk 0:02:00.6]} 19. Bf3 {[%clk
0:02:47.8]} 19... Rd8 {[%clk 0:01:42.3]} 20. O-O {[%clk 0:02:43.5]} 20... Nb6
{[%clk 0:01:23.5]} 21. Bxb7 {[%clk 0:02:39.5]} 21... Nc4 {[%clk 0:01:23]} 22.
Bc6+ {[%clk 0:02:39.6]} 22... Rd7 {[%clk 0:01:21.7]} 23. Qxa6 {[%clk 0:02:37.3]}
23... Nxd6 {[%clk 0:01:20.4]} 24. Qa8+ {[%clk 0:02:02.8]} 24... Ke7 {[%clk
0:01:12.2]} 25. Qxh8 {[%clk 0:02:03.7]} 25... Rc7 {[%clk 0:00:45.3]} 26. Qa8
{[%clk 0:01:57]} 26... h5 {[%clk 0:00:40]} 27. Rad1 {[%clk 0:01:53.6]} 27... Qc5
{[%clk 0:00:36.9]} 28. Bf3 {[%clk 0:01:49.7]} 28... h4 {[%clk 0:00:36.6]} 29. h3
{[%clk 0:01:49.5]} 29... g5 {[%clk 0:00:36.2]} 30. Rd4 {[%clk 0:01:47.7]} 30...
Nf5 {[%clk 0:00:34.5]} 31. Qd8# {[%clk 0:01:46.9]} 1-0